bitfinex-derivatives/quotes_BNBF0:USTF0_20250305
["timestamp","ask_amount","ask_price","bid_price","bid_amount"]
[1741174386936,2.53752401,601.03,600.12,1.57579012]
[1741174387137,2.53752401,601.02,600.12,1.57579012]
[1741174387331,2.53752401,601.01,600.12,1.57579012]
[1741174387546,2.53752401,601.0,600.12,1.57579012]
[1741174387737,2.53752401,600.99,600.12,1.57579012]
[1741174387938,0.9223414,600.98,600.14,1.24252345]
[1741174388132,1.18015772,600.99,600.14,1.24252345]
[1741174388534,3.09358574,601.27,600.14,1.24252345]
[1741174388734,4.01717901,601.26,600.14,1.24252345]
[1741174388946,4.01717901,601.25,600.14,1.24252345]
[1741174389134,4.01717901,601.24,600.14,1.24252345]
[1741174389339,4.01717901,601.23,600.12,0.33326667]
[1741174389536,5.19844782,601.22,600.12,0.33326667]
[1741174389742,4.01717901,601.21,600.12,0.33326667]
[1741174389939,4.01717901,601.2,600.12,0.33326667]
[1741174390139,4.01717901,601.19,600.12,0.33326667]
[1741174390341,4.01717901,601.18,600.12,0.33326667]
[1741174390536,4.02219528,601.17,600.12,0.33326667]
[1741174390737,4.02219528,601.16,600.12,0.33326667]
[1741174390937,4.02219528,601.15,600.12,0.33326667]
[1741174391141,4.02219528,601.14,600.12,0.33326667]
[1741174391339,4.02219528,601.13,600.12,0.33326667]
[1741174391548,4.02219528,601.12,600.12,0.33326667]
[1741174391843,0.98506748,601.03,600.12,0.33326667]
[1741174392032,4.02219528,601.02,600.12,0.33326667]
[1741174392351,4.02219528,601.01,600.12,0.33326667]
[1741174392539,1.47100684,601.02,600.12,0.33326667]
[1741174392540,4.02219528,601.0,600.12,0.33326667]
[1741174392739,4.02219528,600.99,600.12,0.33326667]
[1741174392939,5.20346409,600.98,600.12,0.33326667]
[1741174393136,4.02219528,600.97,600.12,0.33326667]
[1741174393439,5.20346409,600.96,600.12,0.33326667]
[1741174393636,4.02219528,600.95,600.12,0.33326667]
[1741174393833,4.02219528,600.94,600.12,0.33326667]
[1741174394037,2.54301743,600.93,600.12,0.33326667]
[1741174394335,2.54301743,600.92,600.12,0.33326667]
[1741174394540,1.18126881,600.94,600.12,0.33326667]
[1741174394733,2.54138673,600.93,600.12,0.33326667]
[1741174394938,2.54138673,600.92,600.12,0.33326667]
[1741174395139,4.01991996,600.91,600.12,0.33326667]
[1741174395339,4.01991996,600.9,600.12,0.33326667]
[1741174395639,1.18126881,600.92,600.12,0.33326667]
[1741174395640,4.01991996,600.89,600.12,0.33326667]
[1741174395840,4.01991996,600.88,600.12,0.33326667]
[1741174396039,2.54138673,600.87,600.12,0.33326667]
[1741174396240,2.54138673,600.86,600.12,0.33326667]
[1741174396441,2.54138673,600.85,600.12,0.33326667]
[1741174396638,1.18126881,600.87,600.12,0.33326667]
[1741174397239,3.09530449,601.03,600.12,0.33326667]
[1741174397555,2.54112466,601.02,600.12,0.33326667]
[1741174397846,3.72293989,601.01,600.12,0.33326667]
[1741174398038,1.18181523,601.01,600.12,0.33326667]
[1741174398543,3.72345433,601.0,600.12,0.33326667]
[1741174398737,0.92437746,600.99,600.12,0.33326667]
[1741174398941,1.18181523,600.98,600.12,0.33326667]
[1741174399141,1.47910294,601.15,600.12,0.33326667]
[1741174399339,4.02103227,601.14,600.12,0.33326667]
[1741174399542,4.02103227,601.13,600.12,0.33326667]
[1741174399845,4.02103227,601.12,600.12,0.33326667]
[1741174400143,4.02103227,601.11,600.12,0.33326667]
[1741174400443,2.54192933,601.1,600.12,0.33326667]
[1741174400643,2.54191532,601.09,600.12,0.33326667]
[1741174400844,3.72443995,601.08,600.12,0.33326667]
[1741174401042,2.54191532,601.07,600.12,0.33326667]
[1741174401242,2.54191532,601.06,600.12,0.33326667]
[1741174401439,2.54191532,601.05,600.12,0.33326667]
[1741174401643,0.92447897,601.04,600.12,0.33326667]
[1741174401842,1.18252463,601.04,600.12,0.33326667]
[1741174402445,1.18252463,601.04,600.23,1.24252345]
[1741174402745,0.28964277,601.2,600.24,0.33320005]
[1741174402944,4.02230973,601.19,600.24,0.33320005]
[1741174403141,0.92484353,601.18,600.24,0.33320005]
[1741174403347,0.92484353,601.17,600.24,0.33320005]
[1741174403541,1.18287517,601.19,600.24,0.33320005]
[1741174403746,1.18287517,601.16,600.24,0.33320005]
[1741174404143,0.92464378,601.15,600.24,0.33320005]
[1741174404340,1.18287517,601.16,600.24,0.33320005]
[1741174404548,1.18287517,601.14,600.24,0.33320005]
[1741174404848,0.92461906,601.13,600.24,0.33320005]
[1741174405046,1.18287517,601.14,600.24,0.33320005]
[1741174405245,1.18287517,601.12,600.24,0.33320005]
[1741174405643,2.5421974,601.11,600.24,0.33320005]
[1741174405847,0.92478613,601.1,600.24,0.33320005]
[1741174406148,0.92478613,601.09,600.24,0.33320005]
[1741174406354,0.92478613,601.08,600.25,1.24252345]
[1741174406649,0.28965844,601.12,600.25,1.24252345]
[1741174406650,2.1076613,601.07,600.25,1.24252345]
[1741174406844,1.18287517,601.07,600.25,1.24252345]
[1741174407043,1.18287517,601.07,600.26,0.33318895]
[1741174407446,0.28962952,601.21,600.26,0.33318895]
[1741174407647,2.54271424,601.2,600.26,0.33318895]
[1741174407844,2.54271424,601.19,600.26,0.33318895]
[1741174408046,0.92516092,601.18,600.26,0.33318895]
[1741174408248,0.92516092,601.17,600.26,0.33318895]
[1741174408443,1.18328833,601.18,600.26,0.33318895]
[1741174408950,3.09850878,601.28,600.26,0.33318895]
[1741174409245,4.0237825,601.27,600.26,1.5757124]
[1741174409446,4.0237825,601.26,600.26,1.5757124]
[1741174409646,4.0237825,601.25,600.26,1.5757124]
[1741174409849,2.54347809,601.24,600.26,1.5757124]
[1741174410052,2.54347809,601.23,600.26,1.5757124]
[1741174410248,2.54347809,601.22,600.26,1.5757124]
[1741174410449,4.02346483,601.21,600.26,1.5757124]
[1741174410649,4.02346483,601.2,600.26,1.5757124]
[1741174410849,4.02346483,601.19,600.26,1.5757124]
[1741174411050,4.02346483,601.18,600.26,1.5757124]
[1741174411251,4.02346483,601.17,600.26,1.5757124]
[1741174411451,5.20650018,601.16,600.26,1.5757124]
[1741174411756,4.02346483,601.15,600.26,1.5757124]
[1741174412047,5.20650018,601.14,600.26,1.5757124]
[1741174412254,4.02346483,601.13,600.27,1.24252345]
[1741174412453,5.20650018,601.12,600.27,1.24252345]
[1741174412656,4.02410631,601.11,600.27,1.24252345]
[1741174412857,4.02410631,601.1,600.27,1.24252345]
[1741174413054,2.54365098,601.09,600.27,1.24252345]
[1741174413249,4.02417907,601.08,600.27,1.24252345]
[1741174413455,4.02417907,601.07,600.27,1.24252345]
[1741174413648,4.02417907,601.06,600.27,1.24252345]
[1741174413860,2.54365098,601.05,600.27,1.24252345]
[1741174414057,2.54365098,601.04,600.27,1.24252345]
[1741174414260,2.54365098,601.03,600.27,1.24252345]
[1741174414455,4.02452057,601.02,600.26,0.33318895]
[1741174414663,2.54365098,601.01,600.26,0.33318895]
[1741174414853,2.54365098,601.0,600.26,0.33318895]
[1741174415055,4.02473516,600.99,600.26,0.33318895]
[1741174415362,5.20777051,600.98,600.26,0.33318895]
[1741174415556,4.02473516,600.97,600.26,0.33318895]
[1741174415756,2.54365098,600.96,600.26,0.33318895]
[1741174415959,3.72668633,600.95,600.26,0.33318895]
[1741174416258,0.92528458,600.94,600.26,0.33318895]
[1741174416463,1.18303535,600.95,600.26,0.33318895]
[1741174417065,1.18303535,600.94,600.26,0.33318895]
[1741174417664,1.18303535,600.93,600.26,0.33318895]
[1741174418064,1.18303535,600.92,600.26,0.33318895]
[1741174418459,2.54725755,600.91,600.26,0.33318895]
[1741174418663,2.54725755,600.9,600.26,0.33318895]
[1741174418860,2.54725755,600.89,600.26,0.33318895]
[1741174419062,2.54723275,600.88,600.26,0.33318895]
[1741174419264,2.54723275,600.87,600.26,0.33318895]
[1741174419463,4.03057019,600.86,600.26,0.33318895]
[1741174419662,4.03057019,600.85,600.26,0.33318895]
[1741174419867,4.03057019,600.84,600.26,0.33318895]
[1741174420067,4.03057019,600.83,600.26,0.33318895]
[1741174420363,4.03057019,600.83,600.13,0.462]
[1741174420364,4.03057019,600.82,600.13,0.462]
[1741174420567,4.03057019,600.81,600.13,0.462]
[1741174420767,5.21360554,600.8,600.13,0.462]
[1741174420968,4.03057019,600.79,600.13,0.462]
[1741174421267,4.03057019,600.78,600.13,0.462]
[1741174421574,4.03057019,600.77,600.13,0.462]
[1741174421769,4.03057019,600.76,599.93,0.28988163]
[1741174421969,4.03057019,600.75,599.93,0.28988163]
[1741174422268,4.03057019,600.74,599.93,0.28988163]
[1741174422467,4.03057019,600.73,599.93,0.28988163]
[1741174422665,4.03057019,600.72,599.93,0.28988163]
[1741174422869,4.03057019,600.71,599.93,0.28988163]
[1741174423168,3.7302681,600.7,599.93,0.28988163]
[1741174423364,2.54723275,600.69,599.93,0.28988163]
[1741174423569,2.54723275,600.68,599.93,0.28988163]
[1741174423772,1.18303535,600.7,599.93,0.28988163]
[1741174423773,2.54723275,600.67,599.93,0.28988163]
[1741174424070,2.11059356,600.66,599.93,0.28988163]
[1741174424264,0.92755821,600.65,599.93,0.28988163]
[1741174424470,1.18303535,600.66,599.93,0.28988163]
[1741174424672,1.18303535,600.64,599.93,0.28988163]
[1741174424868,1.18303535,600.64,599.93,0.75288163]
[1741174425069,1.18303535,600.63,599.93,0.75288163]
[1741174426169,4.01899652,600.96,599.93,0.75288163]
[1741174426365,4.01899652,600.95,599.93,0.75288163]
[1741174426570,1.18303535,600.98,599.93,0.75288163]
[1741174426571,4.01899652,600.94,599.93,0.75288163]
[1741174426866,5.20203187,600.93,599.93,0.75288163]
[1741174427066,4.01899652,600.92,599.93,0.75288163]
[1741174427270,4.01899652,600.91,599.93,0.463]
[1741174427466,5.20203187,600.9,599.93,0.463]
[1741174427672,4.01728209,600.89,599.93,0.463]
[1741174427972,2.53886849,600.88,599.93,0.463]
[1741174428274,3.72190384,600.87,599.93,0.463]
[1741174428473,2.53886849,600.86,599.94,0.33336667]
[1741174428778,1.47291698,600.87,599.94,0.33336667]
[1741174428779,0.92401108,600.85,599.94,0.33336667]
[1741174428968,1.18303535,600.85,599.94,0.33336667]
[1741174429980,0.28988163,600.87,599.94,0.33336667]
[1741174432467,1.61331603,600.86,599.94,0.33336667]
[1741174432664,4.01682256,600.85,599.94,0.33336667]
[1741174432873,4.01682256,600.84,599.94,0.33336667]
[1741174433071,4.01682256,600.83,599.94,0.33336667]
[1741174433366,0.98494387,600.99,599.94,0.33336667]
[1741174433367,3.72004436,600.82,599.94,0.33336667]
[1741174433570,2.53763545,600.81,599.94,0.33336667]
[1741174433770,2.10672833,600.8,599.94,0.33336667]
[1741174433966,2.53741819,600.79,599.94,0.33336667]
[1741174434169,0.92431942,600.78,599.94,0.33336667]
[1741174434374,0.92431942,600.77,599.94,0.33336667]
[1741174434576,0.92431942,600.76,599.94,0.33336667]
[1741174434772,0.92445975,600.75,599.94,0.33336667]
[1741174434982,1.18240891,600.74,599.94,0.33336667]
[1741174435476,1.61319918,600.9,599.94,0.33336667]
[1741174435670,2.53771608,600.89,599.94,0.33336667]
[1741174435870,2.53771608,600.88,599.94,0.33336667]
[1741174436074,2.53771608,600.87,599.94,0.33336667]
[1741174436273,2.53771608,600.86,599.94,0.33336667]
[1741174436470,2.53771608,600.85,599.94,0.33336667]
[1741174436773,2.53771608,600.84,599.94,0.33336667]
[1741174436974,2.10697467,600.83,599.94,0.33336667]
[1741174437177,0.9245169,600.82,599.94,0.33336667]
[1741174437377,3.71994379,600.81,599.94,0.33336667]
[1741174437577,2.53748602,600.8,599.94,0.33336667]
[1741174437774,2.53748602,600.79,599.94,0.33336667]
[1741174437973,3.71994379,600.78,599.94,0.33336667]
[1741174438279,2.53748602,600.77,599.94,0.33336667]
[1741174438477,0.9245169,600.76,599.94,0.33336667]
[1741174438677,0.9245169,600.75,599.94,0.33336667]
[1741174438877,0.9245169,600.74,599.94,0.33336667]
[1741174439074,1.18245777,600.77,599.94,0.33336667]
[1741174439380,1.18245777,600.73,599.94,0.33336667]
[1741174439583,1.18245777,600.72,599.94,0.33336667]
[1741174440082,1.18245777,600.71,599.94,0.33336667]
[1741174440582,1.18245777,600.7,599.94,0.33336667]
[1741174441084,0.92345682,600.82,599.94,0.33336667]
[1741174441278,0.92345682,600.81,599.94,0.33336667]
[1741174441482,1.18245777,600.8,599.94,0.33336667]
[1741174441877,0.92303535,600.83,599.94,0.33336667]
[1741174442078,0.28976819,600.93,599.94,0.33336667]
[1741174442280,2.53555657,600.92,599.94,0.33336667]
[1741174442480,2.53555657,600.91,599.94,0.33336667]
[1741174442685,2.53556823,600.9,599.94,0.33336667]
[1741174442879,2.53556823,600.89,599.94,0.33336667]
[1741174443088,3.71612553,600.88,599.94,0.33336667]
[1741174443280,2.53556823,600.87,599.94,0.33336667]
[1741174443483,2.53556823,600.86,599.94,0.33336667]
[1741174443679,3.71612553,600.85,599.94,0.33336667]
[1741174443878,2.53556823,600.84,599.94,0.33336667]
[1741174444080,2.53556823,600.83,599.94,0.33336667]
[1741174444278,2.53556823,600.82,599.94,0.33336667]
[1741174444584,0.92304886,600.81,599.94,0.33336667]
[1741174444783,2.53495691,600.8,599.94,0.33336667]
[1741174445077,3.71551421,600.79,599.94,0.33336667]
[1741174445285,2.53478976,600.78,599.94,0.33336667]
[1741174445579,2.53478976,600.77,599.94,0.33336667]
[1741174445779,2.53478976,600.76,599.94,0.33336667]
[1741174445980,2.53478976,600.75,599.94,0.33336667]
[1741174446286,0.92280779,600.74,599.94,0.33336667]
[1741174446493,2.10336509,600.73,599.94,0.33336667]
[1741174446686,0.92280779,600.72,599.94,0.33336667]
[1741174446888,0.92280779,600.71,599.94,0.33336667]
[1741174447090,0.92200136,600.7,599.94,0.33336667]
[1741174447293,3.71454063,600.69,599.94,0.33336667]
[1741174447482,0.92200136,600.68,599.94,0.33336667]
[1741174447689,2.53300189,600.67,599.94,0.33336667]
[1741174447887,2.53300189,600.66,599.94,0.33336667]
[1741174448188,0.92200136,600.65,599.94,0.33336667]
[1741174448388,0.92200136,600.64,599.94,0.33336667]
[1741174448690,1.1805573,600.66,599.94,0.33336667]
[1741174448890,0.9216478,600.63,599.94,0.33336667]
[1741174449092,0.9216478,600.62,599.94,0.33336667]
[1741174449289,1.1805573,600.65,599.94,0.33336667]
[1741174449489,0.92150269,600.64,599.94,0.33336667]
[1741174449690,2.10205999,600.63,599.94,0.33336667]
[1741174449895,0.92150269,600.62,599.94,0.33336667]
[1741174450194,2.10205999,600.61,599.95,0.463]
[1741174450492,0.92150269,600.6,599.95,0.463]
[1741174450685,1.1805573,600.61,599.95,0.463]
[1741174450886,0.92125565,600.6,599.95,0.463]
[1741174451089,1.1805573,600.6,599.95,0.463]
[1741174451491,2.10171302,600.59,599.95,0.463]
[1741174451691,1.1805573,600.59,599.95,0.463]
[1741174452395,3.08419629,600.85,599.95,0.463]
[1741174452591,0.28982128,600.81,599.95,0.463]
[1741174452789,4.00561247,600.8,599.95,0.463]
[1741174452990,4.00561247,600.79,599.95,0.463]
[1741174453190,4.00561247,600.78,599.95,0.463]
[1741174453387,4.00561247,600.77,599.95,0.463]
[1741174453687,2.09998448,600.76,599.95,0.463]
[1741174453890,0.92141618,600.75,599.95,0.463]
[1741174454091,0.92141618,600.74,599.95,0.463]
[1741174454291,2.09998448,600.73,599.95,0.463]
[1741174454487,1.1785683,600.73,599.95,0.463]
[1741174454691,0.92117383,600.72,599.95,0.463]
[1741174454889,4.30050348,603.44,599.95,0.463]
[1741174454890,3.08391963,601.01,599.95,0.463]
[1741174455092,4.00511696,601.0,599.95,0.463]
[1741174455287,4.00511696,600.99,599.95,0.463]
[1741174455493,5.18327726,600.98,599.95,0.463]
[1741174455694,4.00511696,600.97,599.95,0.463]
[1741174455896,4.00511696,600.96,599.95,0.463]
[1741174456199,1.1781603,600.98,599.95,0.463]
[1741174456200,4.00511696,600.95,599.95,0.463]
[1741174456391,4.00511696,600.94,599.95,0.463]
[1741174456596,2.53129244,600.93,599.95,0.463]
[1741174456797,2.53129244,600.92,599.96,0.33335555]
[1741174456991,2.53129244,600.91,599.96,0.33335555]
[1741174457296,0.92119733,600.9,599.96,0.33335555]
[1741174457498,0.92119733,600.89,599.96,0.33335555]
[1741174457696,0.92119733,600.88,599.96,0.33335555]
[1741174457895,0.92119733,600.87,599.96,0.33335555]
[1741174458100,1.1781603,600.89,599.96,0.33335555]
[1741174458294,2.0993157,600.88,599.96,0.33335555]
[1741174458597,1.1781603,600.88,599.96,0.33335555]
[1741174458996,1.1781603,600.87,599.96,0.33335555]
[1741174459501,1.1781603,600.86,599.96,0.33335555]
[1741174459895,3.08469268,600.95,599.96,0.33335555]
[1741174460100,4.00628639,600.94,600.09,1.24252345]
[1741174460299,4.00685698,600.93,600.09,1.24252345]
[1741174460494,2.53222073,600.92,600.09,1.24252345]
[1741174460695,2.53222073,600.91,600.09,1.24252345]
[1741174460894,0.92159371,600.9,600.09,1.24252345]
[1741174461106,0.92159371,600.89,600.09,1.24252345]
[1741174461395,2.10063044,600.88,600.09,1.24252345]
[1741174461605,1.17903673,600.88,600.09,1.24252345]
[1741174461799,0.92209858,600.87,600.09,1.24252345]
[1741174461998,1.17903673,600.88,600.09,1.24252345]
[1741174462398,0.9222682,600.87,600.09,1.24252345]
[1741174462603,1.17903673,600.87,600.09,1.24252345]
[1741174463002,1.17903673,600.87,600.1,0.33327778]
[1741174463404,1.17903673,600.86,600.1,0.33327778]
[1741174463995,1.61232032,600.94,600.1,0.33327778]
[1741174464202,2.53514878,600.93,600.1,0.33327778]
[1741174464395,2.53546084,600.92,600.1,0.33327778]
[1741174464595,0.92282846,600.91,600.1,0.33327778]
[1741174464799,1.18034515,600.93,600.1,0.33327778]
[1741174465097,2.10334886,600.92,600.1,0.33327778]
[1741174465302,1.18034515,600.92,600.1,0.33327778]
[1741174465602,1.18034515,600.91,600.1,0.33327778]
[1741174466301,1.18034515,600.9,600.1,0.33327778]
[1741174466700,1.18034515,600.89,600.1,0.33327778]
[1741174467501,1.18034515,600.88,600.1,0.33327778]
[1741174468099,1.18034515,600.87,600.1,0.33327778]
[1741174468493,1.18034515,600.86,600.1,0.33327778]
[1741174469303,1.18034515,600.85,600.1,0.33327778]
[1741174469997,1.6144421,600.97,600.1,0.33327778]
[1741174470203,2.53835338,600.96,600.1,0.33327778]
[1741174470400,2.53835338,600.95,600.1,0.33327778]
[1741174470602,2.53835338,600.94,600.1,0.33327778]
[1741174470796,2.53835338,600.93,600.1,0.33327778]
[1741174471001,2.53835338,600.92,600.1,0.33327778]
[1741174471199,2.53886712,600.91,600.1,0.33327778]
[1741174471397,2.10616839,600.9,600.1,0.33327778]
[1741174471603,0.92391128,600.89,600.1,0.33327778]
[1741174471799,1.18225711,600.9,600.1,0.33327778]
[1741174471997,1.4791567,601.02,600.1,0.33327778]
[1741174471998,1.18225711,600.89,600.1,0.33327778]
[1741174472703,1.18225711,600.88,600.1,0.33327778]
[1741174473200,1.18225711,600.87,600.1,0.33327778]
[1741174473708,1.18225711,600.86,600.1,0.33327778]
[1741174474100,1.4792529,601.01,600.1,0.33327778]
[1741174474301,4.02061844,601.0,600.1,0.33327778]
[1741174474501,4.02061844,600.99,600.1,0.33327778]
[1741174474701,3.72487016,600.98,600.1,0.33327778]
[1741174474905,2.54136554,600.97,600.1,0.33327778]
[1741174475106,0.92513336,600.96,600.1,0.33327778]
[1741174475308,1.18350462,600.98,600.1,0.33327778]
[1741174475309,2.10863798,600.95,600.1,0.33327778]
[1741174475508,0.92513336,600.94,600.1,0.33327778]
[1741174475700,1.18350462,600.93,600.1,0.33327778]
[1741174476107,1.18350462,600.93,600.15,1.24252345]
[1741174476403,1.48083256,601.12,600.15,1.24252345]
[1741174476604,4.02289258,601.11,600.15,1.24252345]
[1741174476909,4.02289258,601.1,600.16,0.33324446]
[1741174477109,4.02289258,601.09,600.16,0.33324446]
[1741174477315,4.02289258,601.08,600.16,0.33324446]
[1741174477610,4.02289258,601.07,600.16,0.33324446]
[1741174477811,4.02289258,601.06,600.16,0.33324446]
[1741174478018,4.02289258,601.05,600.16,0.33324446]
[1741174478211,3.5899764,601.04,600.16,0.33324446]
[1741174478511,1.18366293,601.03,600.16,0.33324446]
[1741174479010,3.09750604,601.12,600.16,0.33324446]
[1741174479206,0.28966568,601.14,600.16,0.33324446]
[1741174479207,4.02279893,601.11,600.16,0.33324446]
[1741174479406,2.54219929,601.1,600.16,0.33324446]
[1741174479608,3.72537822,601.09,600.16,0.33324446]
[1741174479805,0.92529289,601.08,600.16,0.33324446]
[1741174480005,0.92529289,601.07,600.16,0.33324446]
[1741174480211,0.92529289,601.06,600.16,0.33324446]
[1741174480412,2.10847182,601.05,600.16,0.33324446]
[1741174480614,0.92511775,601.04,600.16,0.33324446]
[1741174480814,1.18317893,601.03,600.16,0.33324446]
[1741174481514,1.18317893,601.02,600.16,0.79724446]
[1741174481917,1.61628512,601.09,600.16,0.79724446]
[1741174482216,2.54155038,601.08,600.16,0.79724446]
[1741174482411,3.72504485,601.07,600.16,0.79724446]
[1741174482610,0.92526526,601.06,600.16,0.79724446]
[1741174482916,1.18349447,601.07,600.16,0.79724446]
[1741174483116,0.92535263,601.06,600.16,0.79724446]
[1741174483415,1.18349447,601.06,600.16,0.79724446]
[1741174484218,1.18349447,601.05,600.16,0.79724446]
[1741174484714,1.18349447,601.04,600.16,0.79724446]
[1741174485120,1.61620182,601.12,600.16,0.79724446]
[1741174485317,2.54171806,601.11,600.16,0.79724446]
[1741174485521,0.28966568,601.14,600.16,0.79724446]
[1741174485522,4.02254405,601.1,600.16,0.79724446]
[1741174485820,4.02254405,601.09,600.16,0.79724446]
[1741174486121,4.02254405,601.08,600.16,0.79724446]
[1741174486415,4.02254405,601.07,600.16,0.79724446]
[1741174486720,4.02254405,601.06,600.16,0.79724446]
[1741174486921,4.02254405,601.05,600.16,0.79724446]
[1741174487122,4.02254405,601.04,600.16,0.79724446]
[1741174487322,4.02254405,601.03,600.16,0.79724446]
[1741174487618,4.02254405,601.02,600.16,0.79724446]
[1741174487822,4.02254405,601.01,600.16,0.79724446]
[1741174488017,4.02254405,601.0,600.16,0.79724446]
[1741174488226,4.02220105,600.99,600.16,0.79724446]
[1741174488417,2.54171806,600.98,600.16,0.79724446]
[1741174488625,2.54171806,600.97,600.16,0.79724446]
[1741174488819,0.92551624,600.96,600.16,0.79724446]
[1741174489014,0.92551624,600.95,600.16,0.79724446]
[1741174489222,0.92551624,600.94,600.16,0.79724446]
[1741174489423,1.18368548,600.95,600.16,0.79724446]
[1741174489621,0.92530839,600.94,600.16,0.79724446]
[1741174489822,1.18368548,600.94,600.16,0.79724446]
[1741174490220,1.18368548,600.93,600.16,0.79724446]
[1741174491018,1.18368548,600.93,600.16,2.03976791]
[1741174491224,1.18368548,600.92,600.16,2.03976791]
[1741174492024,1.4801782,601.05,600.16,2.03976791]
[1741174492220,4.02106331,601.04,600.16,2.03976791]
[1741174492415,5.20421667,601.03,600.16,2.03976791]
[1741174492621,4.02106331,601.02,600.16,2.03976791]
[1741174492822,3.72403847,601.01,600.16,2.03976791]
[1741174493020,2.54088511,601.0,600.16,2.03976791]
[1741174493222,1.18315336,601.01,600.22,1.24252345]
[1741174493223,2.54088511,600.99,600.22,1.24252345]
[1741174493526,0.92512134,600.98,600.22,1.24252345]
[1741174493819,0.92512134,600.97,600.22,1.24252345]
[1741174494022,1.18315336,600.98,600.22,1.24252345]
[1741174494023,0.92512134,600.96,600.22,1.24252345]
[1741174494218,1.18315336,600.96,600.22,1.24252345]
[1741174494823,1.18315336,600.95,600.2,1.24252345]
[1741174495724,1.18315336,600.94,600.2,1.24252345]
[1741174496023,0.28967773,601.09,600.2,1.24252345]
[1741174496224,5.20410156,601.08,600.2,1.24252345]
[1741174496425,4.0210313,601.07,600.2,1.24252345]
[1741174496725,5.20410156,601.06,600.22,1.24252345]
[1741174497023,5.20410156,601.05,600.22,1.24252345]
[1741174497224,4.0210313,601.04,600.22,1.24252345]
[1741174497422,3.72378521,601.03,600.22,1.24252345]
[1741174497623,2.54038951,601.02,600.22,1.24252345]
[1741174497819,3.72345977,601.01,600.22,1.24252345]
[1741174498023,2.54038951,601.0,600.22,1.24252345]
[1741174498220,0.92487227,600.99,600.22,1.24252345]
[1741174498424,2.10794253,600.98,600.22,1.24252345]
[1741174498720,2.10794253,600.98,600.17,0.28968014]
[1741174498721,2.10794253,600.97,600.17,0.28968014]
[1741174498920,1.18307026,600.97,600.17,0.28968014]
[1741174499125,2.10791119,600.96,600.16,0.79724446]
[1741174499325,1.18307026,600.96,600.16,0.79724446]
[1741174499520,1.18307026,600.96,600.17,0.28968135]
[1741174499724,1.18307026,600.95,600.17,0.28968135]
[1741174500226,1.48016985,601.23,600.17,0.28968135]
[1741174500424,0.28968376,601.09,600.17,0.28968135]
[1741174500625,2.54058959,601.08,600.17,0.28968135]
[1741174500825,2.54058959,601.07,600.17,0.28968135]
[1741174501019,2.54058959,601.06,600.17,0.28968135]
[1741174501327,3.72373768,601.05,600.17,0.28968135]
[1741174501522,0.92511007,601.04,600.17,0.28968135]
[1741174501721,0.92487192,601.03,600.17,0.28968135]
[1741174502026,1.18315839,601.05,600.17,0.28968135]
[1741174502223,1.18315839,601.02,600.16,0.79724446]
[1741174502728,0.28966206,601.14,600.17,0.28966206]
[1741174502929,2.5405086,601.13,600.18,0.33323336]
[1741174503130,3.72341334,601.12,600.18,0.33323336]
[1741174503326,2.5405086,601.11,600.18,0.33323336]
[1741174503627,0.92493501,601.1,600.18,0.33323336]
[1741174503828,0.92493501,601.09,600.18,0.33323336]
[1741174504028,0.92493501,601.08,600.18,0.33323336]
[1741174504329,0.92497102,601.07,600.18,0.33323336]
[1741174504529,1.18290474,601.07,600.18,0.33323336]
[1741174504725,1.18290474,601.06,600.18,0.33323336]
[1741174504930,1.18290474,601.06,600.21,1.24252345]
[1741174505232,1.18290474,601.06,600.21,1.57574015]
[1741174505429,1.18290474,601.05,600.21,1.57574015]
[1741174506024,1.18290474,601.05,600.22,0.33321115]
[1741174506224,4.02119742,601.3,600.22,0.33321115]
[1741174506429,0.28964639,601.17,600.22,0.33321115]
[1741174506625,2.54085897,601.16,600.41,1.24252345]
[1741174506825,2.54085897,601.15,600.41,1.24252345]
[1741174507131,5.20418256,601.14,600.41,1.24252345]
[1741174507327,4.02119742,601.13,600.41,1.24252345]
[1741174507528,4.02119742,601.12,600.41,1.24252345]
[1741174507725,4.02119742,601.11,600.41,1.24252345]
[1741174507926,4.02119742,601.1,600.41,1.24252345]
[1741174508129,4.02119742,601.09,600.41,1.24252345]
[1741174508333,4.02119742,601.08,600.22,0.33321115]
[1741174508526,4.02119742,601.07,600.22,0.33321115]
[1741174508726,4.02119742,601.06,600.22,0.33321115]
[1741174509033,4.02119742,601.05,600.22,0.33321115]
[1741174509233,5.20418256,601.04,600.22,0.33321115]
[1741174509425,4.02119742,601.03,600.22,0.33321115]
[1741174509626,4.02119742,601.02,600.23,0.464]
[1741174509831,4.02119742,601.01,600.23,0.464]
[1741174510132,5.20418256,601.0,600.23,0.464]
[1741174510427,4.02119742,600.99,600.23,0.464]
[1741174510633,5.20418256,600.98,600.23,0.464]
[1741174510828,4.02119742,600.97,600.23,0.464]
[1741174511027,4.02119742,600.96,600.23,0.464]
[1741174511234,4.02119742,600.95,600.23,0.464]
[1741174511431,4.02119742,600.94,600.23,0.464]
[1741174511627,4.02119742,600.93,600.23,0.464]
[1741174511830,4.02046713,600.92,600.23,0.464]
[1741174512030,4.02046713,600.91,600.23,0.464]
[1741174512229,4.02046713,600.9,600.23,0.464]